{"text_format":"1","workbook":"xlsx","n_sheets":3,"sheets":["VMware FINAL ORDER SUMMARY","Product & Price List","Click to Quote"],"not_rendered":{"charts":0,"images":4,"macros":1,"external_links":1,"defined_names":2,"comments":1,"pivot_tables":0},"unopened":[],"bounds":{"document_bytes":16777216,"sheet_cells":100000,"rows_first":2000,"rows_last":500,"rows_between":2000,"halvings":0,"cell_chars":16384,"cell_head_chars":4096},"cells_cut":0,"cells_raw":0,"read":"whole","date_system":"1900"}

{"sheet":"VMware FINAL ORDER SUMMARY","index":0,"n_rows":126,"n_cols":19,"rows_kept":126,"cut":false,"hidden":false,"merged":[[133,6,133,16],[122,7,122,8],[122,12,122,13],[123,7,123,8],[123,12,123,13],[124,7,124,8],[124,12,124,13],[148,6,148,7],[148,8,148,14],[141,7,141,14],[142,7,142,14],[144,6,144,12],[146,6,146,7],[146,8,146,14],[147,6,147,7],[147,8,147,14],[126,12,126,13],[126,5,126,10],[170,7,170,9],[173,6,173,16],[160,7,160,14],[161,7,161,14],[162,7,162,14],[167,7,167,14],[168,7,168,14],[169,7,169,9],[152,7,152,14],[153,7,153,14],[154,7,154,14],[156,7,156,14],[157,7,157,14],[158,7,158,14],[149,8,149,9],[151,7,151,14],[136,7,136,14],[80,7,80,8],[79,7,79,8],[81,15,81,17],[85,5,85,14],[81,7,81,8],[82,5,82,6],[80,5,80,6],[82,15,82,17],[91,15,91,17],[105,7,106,8],[90,7,90,8],[105,11,106,11],[82,7,82,8],[105,9,106,9],[90,15,90,17],[85,15,85,17],[105,5,106,6],[101,5,101,14],[105,10,106,10],[101,15,101,17],[92,7,92,8],[115,7,115,8],[116,7,116,8],[115,5,115,6],[107,7,107,8],[116,5,116,6],[117,15,120,18],[120,7,120,8],[118,12,118,13],[120,12,120,13],[118,7,118,8],[118,5,118,6],[115,12,115,13],[115,15,116,18],[116,12,116,13],[112,6,112,8],[107,5,107,6],[117,7,117,8],[106,15,111,18],[92,15,92,17],[100,5,100,6],[125,12,125,13],[125,7,125,8],[121,15,127,18],[121,7,121,8],[122,5,122,6],[123,5,123,6],[124,5,124,6],[100,7,100,8],[96,5,96,6],[97,5,97,6],[94,5,94,6],[95,5,95,6],[99,15,99,17],[100,15,100,17],[92,5,92,6],[99,5,99,6],[96,7,96,8],[96,15,96,17],[97,7,97,8],[97,15,97,17],[117,12,117,13],[117,5,117,6],[0,6,0,17],[3,5,3,18],[83,15,83,17],[84,15,84,17],[83,5,83,6],[84,5,84,6],[78,5,78,6],[114,5,114,13],[125,5,125,6],[41,12,41,18],[119,5,119,6],[119,12,119,13],[121,5,121,6],[121,12,121,13],[119,7,119,8],[89,12,89,17],[73,12,73,17],[120,5,120,6],[44,12,44,18],[45,12,45,18],[74,7,74,8],[78,15,78,17],[38,6,39,18],[41,6,41,9],[42,12,42,18],[42,6,42,9],[43,6,43,9],[44,6,44,9],[45,6,45,9],[74,5,74,6],[43,12,43,18],[68,6,68,13],[72,5,72,17],[74,15,74,17],[49,5,49,18],[50,7,50,18],[51,7,51,18],[55,10,55,18],[56,10,56,18],[57,10,57,18],[58,10,58,18],[59,10,59,18],[91,5,91,6],[99,7,99,8],[91,7,91,8],[73,9,73,11],[81,5,81,6],[73,5,73,8],[80,15,80,17],[75,5,75,6],[75,7,75,8],[75,15,75,17],[76,15,76,17],[76,7,76,8],[77,7,77,8],[84,7,84,8],[89,5,89,8],[77,15,77,17],[76,5,76,6],[77,5,77,6],[79,5,79,6],[83,7,83,8],[89,9,89,11],[79,15,79,17],[78,7,78,8],[90,5,90,6],[93,15,93,17],[94,7,94,8],[94,15,94,17],[95,7,95,8],[93,5,93,6],[93,7,93,8],[95,15,95,17],[98,5,98,6],[98,7,98,8],[98,15,98,17]]}
[null,"NEW","UPGRADE","RENEWAL",null,"Version 2"]
[]
[]
[null,null,null,null,null,"OARnet/ VMware - VIRTUALIZATION PROGRAM ORDER FORM"]
[]
[]
[]
[]
[]
[]
[]
[]
[]
[]
[]
[]
[]
[]
[null,"AIRWATCH FOR K-12 - CLOUD BASED"]
[null,"•  AirWatch Ste for K-12 Educ Instit 2-yr Subscr-Shared Cloud for 1 Device(Incl SaaS Prod Supprt/Subscr)"]
[null,"•  AirWatch Ste for K-12 Educ Instit 3-yr Subscr-Shared Cloud for 1 Device(Incl SaaS Prod Supprt/Subscr)"]
[null,"•  AirWatch Ste for K-12 Educ Instit 1-yr Subscr-Shared Cloud for 1 Device(Incl SaaS Prod Supprt/Subscr)"]
[null,"•  AirWatch Ste for K-12 Educ Instit 2-yr Subscr - Dedicated Cloud for 1 Device (Incl SaaS Prod Supprt/Subscr)"]
[null,"•  AirWatch Ste for K-12 Educ Inst 3-yr Subscr - Dedicated Cloud for 1 Device (Incl SaaS Prod Supprt/Subscr)"]
[null,"•  AirWatch Ste for K-12 Educ Inst 1-yr Subscr - Dedicated Cloud for 1 Device (Incl SaaS Prod Supprt/Subscr)"]
[null,"•  AirWatch Ste for K-12 Educ Inst with Teacher Tools 2-yr Subscr - Shared Cloud for 1 Device (Incl SaaS Prod Supprt/Subscr)"]
[null,"•  AirWatch Ste for K-12 Educ Inst with Teacher Tools 3-yr Subscr - Shared Cloud for 1 Device (Incl SaaS Prod Supprt/Subscr)"]
[null,"•  AirWatch Ste for K-12 Educ Inst with Teacher Tools 1-yr Subscr - Shared Cloud for 1 Device (Incl SaaS Prod Supprt/Subscr)"]
[null,"•  AirWatch Ste for K-12 Educ Inst with Teacher Tools 2-yr Subscr - Dedicated Cloud for 1 Device (Incl SaaS Prod Supprt/Subscr)"]
[null,"•  AirWatch Ste for K-12 Educ Inst with Teacher Tools 1-yr Subscr - Dedicated Cloud for 1 Device (Incl SaaS Prod Supprt/Subscr)"]
[null,"•  AirWatch Ste for K-12 Educ Inst with Teacher Tools 3-yr Subscr - Dedicated Cloud for 1 Device (Incl SaaS Prod Supprt/Subscr)"]
[null,"•  AirWatch Ste for K-12 Educational Inst 2-yr Subscr - Shared Cloud for 1 Device (Incl SaaS Basic Support/Subscr)"]
[null,"•  AirWatch Ste for K-12 Educational Inst 3-yr Subscr - Shared Cloud for 1 Device (Incl SaaS Basic Support/Subscr)"]
[null,"•  AirWatch Ste for K-12 Educational Inst 1-yr Subscr - Shared Cloud for 1 Device (Incl SaaS Basic Support/Subscr)"]
[null,"•  AirWatch Ste for K-12 Educational Inst 2-yr Subscr - Dedicated Cloud for 1 Device (Incl SaaS Basic Support/Subscr)"]
[null,"•  AirWatch Ste for K-12 Educational Inst 3-yr Subscr - Dedicated Cloud for 1 Device (Incl SaaS Basic Support/Subscr)"]
[null,"•  AirWatch Ste for K-12 Educational Inst 1-yr Subscr - Dedicated Cloud for 1 Device (Incl SaaS Basic Support/Subscr)"]
[null,"•  AirWatch Ste for K-12 Educational Inst with Teacher Tools 2-yr Subscr - Shared Cloud for 1 Device (Incl SaaS Basic Support/Subscr)"]
[null,"•  AirWatch Ste for K-12 Educational Inst with Teacher Tools 3-yr Subscr - Shared Cloud for 1 Device (Incl SaaS Basic Support/Subscr)",null,null,null,null,"IN WITNESS WHEREOF, each party hereto warrants and represents that this Order Form has been executed by a duly authorized representative of such party, and it constitutes the legal, valid and binding obligation of such party."]
[null,"•  AirWatch Ste for K-12 Educational Inst with Teacher Tools 1-yr Subscr - Shared Cloud for 1 Device (Incl SaaS Basic Support/Subscr)"]
[null,"•  AirWatch Ste for K-12 Educational Inst with Teacher Tools 2-yr Subscr - Dedicated Cloud for 1 Device (Incl SaaS Basic Support/Subscr)"]
[null,"•  AirWatch Ste for K-12 Educational Inst with Teacher Tools 3-yr Subscr - Dedicated Cloud for 1 Device (Incl SaaS Basic Support/Subscr)",null,null,null,null,"OHIO ACADEMIC RESOURCES NETWORK - OARNET",null,null,null,null,"End User:"]
[null,"•  AirWatch Ste for K-12 Educational Inst with Teacher Tools 1-yr Subscr - Dedicated Cloud for 1 Device (Incl SaaS Basic Support/Subscr)",null,null,null,"By:",null,null,null,null,null,"Signature:"]
[null,"•  AirWatch Basic Migration Configuration and Deployment On Premise Deployment Fee, One Time Fee",null,null,null,"Name:","Paul Schopis",null,null,null,null,"Name:"]
[null,"•  AirWatch Basic Migration Configuration and Deployment Cloud Deployment, One Time Fee",null,null,null,"Title:","Interim Executive Director, OARnet",null,null,null,null,"Title:"]
[null,"•  AirWatch PKI Certificate Basic Configuration and Deployment, One Time Fee",null,null,null,"Date:",null,null,null,null,null,"Date:"]
[null,"•  AirWatch Green Management Suite Cloud Deployment Fee, One Time Fee"]
[null,"•  AirWatch Orange Management Suite Cloud Deployment Fee, One Time Fee"]
[null,"•  AirWatch Blue Management Suite Cloud Deployment Fee, One Time Fee"]
[null,"•  AirWatch Yellow Management Suite Cloud Deployment Fee, One Time Fee",null,null,null,"END USER CONTACT INFORMATION"]
[null,"•  AirWatch Enterprise Gold SaaS Cloud Deployment up to 100,000 devices, One Time Fee",null,null,null,null,"Entity / Customer / End User Name:"]
[null,"•  AirWatch Enterprise Silver SaaS Cloud Deployment up to 50,000 devices, One Time Fee",null,null,null,null,"Portal Folder Name (if known):"]
[null,"•  AirWatch Enterprise Support, 1 Year Fee per Geography or Business Unit"]
[null,"•  AirWatch Technical Account Manager, can be purchased by AirWatch Production or Enterprise Customers"]
[null,"•  AirWatch Accelerated Deployment Add-On, One Time Fee",null,null,null,null,"Technical Contact (Primary):",null,null,null,"Billing Contact"]
[null,"•  AirWatch Per App Tunneling Configuration, One Time Fee",null,null,null,"Name:",null,null,null,"Name:"]
[null,"•  AirWatch Application Server Migration",null,null,null,"Address:",null,null,null,"Address:"]
[null,"•  AirWatch Reports Server Configuration and Deployment, One Time Fee",null,null,null,"City/State/Zip:",null,null,null,"City/State/Zip:"]
[null,"•  AirWatch Database Server Migration",null,null,null,"Phone:",null,null,null,"Phone:"]
[null,"•  AirWatch Device Enrollment Program (DEP) Configuration and Deployment, One Time Fee",null,null,null,"Email:",null,null,null,"Email:"]
[null,"•  AirWatch Cloud - Dedicated Environment Setup, One Time Fee / Environment"]
[null,"•  AirWatch Cloud - Dedicated UAT Environment, Annual Fee / Environment"]
[null,"•  AirWatch Disaster Recovery Set-up Fee"]
[null,"•  AirWatch Cloud Connector (ACC) Configuration and Deployment - Enterprise Integration, One Time Fee"]
[null,"•  AirWatch Telecom Module Deployment, One Time Fee"]
[null,"•  AirWatch K12 Suite Cloud Deployment, One Time Fee"]
[null,"•  AirWatch K12 Suite with Teacher Tools Cloud Deployment, One Time Fee"]
[null,"•  AirWatch K12 Suite + MAG Cloud Deployment Fee, One Time Fee"]
[null,"•  AirWatch K12 Suite with Teacher Tools + MAG Cloud Deployment Fee, One Time Fee",null,null,null,"CUSTOMER:",{"$f":"IF(H51=\"\",\"\",H51)","v":""}]
[null,"•  AirWatch High Availability Set-up, One Time Fee"]
[null,"•  AirWatch Health Check , One Time Fee",null,null,null,"ATTACHMENT 1 - ORDER SUMMARY"]
[null,"•  AirWatch Professional Services - 1 hour of support services, One Time Fee"]
[null,"•  AirWatch Enterprise Mobility: K12 Education - Open Enrollment",null,null,null,"NEW VMWARE LICENSES and MAINTENANCE"]
[null,"•  AirWatch Enterprise Mobility: K12 Education - On Site or Live Online Dedicated",null,null,null,"VMware Products",null,null,null,"License Fees"]
[null,"•  AirWatch Enterprise Mobility: K12 Education - Extra Person",null,null,null,"Product",null,"Product Code",null,"Qty","License Fee","License Total",null,null,null,null,null,null,"Total Cost"]
[null,"•  AirWatch Enterprise Mobility: Configure and Manage - Open Enrollment",null,null,null,null,null,{"$f":"IF(OR(F76=\"\",ISNUMBER(F76)),\"\",VLOOKUP(F76,'Product & Price List'!$D$17:$H$113,2,FALSE))","v":""},null,null,{"$f":"IF(OR(F76=\"\",ISNUMBER(F76)),\"\",VLOOKUP(F76,'Product & Price List'!$D$17:$H$113,4,FALSE))","v":""},{"$f":"IF(OR(F76=\"\",ISNUMBER(F76)),\"\",J76*K76)","v":""},null,{"$f":"IF(OR(F76=\"\",ISNUMBER(F76)),\"\",VLOOKUP(F76,'Product & Price List'!$D$17:$H$113,5,FALSE))","v":""},{"$f":"IF(OR(F76=\"\",ISNUMBER(F76)),\"\",J76*M76*N76)","v":""},{"$f":"IF(OR(F76=\"\",ISNUMBER(F76)),\"\",VLOOKUP(F76,'Product & Price List'!$D$17:$H$113,3,FALSE))","v":""},null,null,{"$f":"IF(OR(F76=\"\",ISNUMBER(F76)),0,L76+O76)","v":0}]
[null,"•  AirWatch Enterprise Mobility: Configure and Manage - On Site or Live Online Dedicated",null,null,null,null,null,{"$f":"IF(OR(F77=\"\",ISNUMBER(F77)),\"\",VLOOKUP(F77,'Product & Price List'!$D$17:$H$113,2,FALSE))","v":""},null,null,{"$f":"IF(OR(F77=\"\",ISNUMBER(F77)),\"\",VLOOKUP(F77,'Product & Price List'!$D$17:$H$113,4,FALSE))","v":""},"",null,{"$f":"IF(OR(F77=\"\",ISNUMBER(F77)),\"\",VLOOKUP(F77,'Product & Price List'!$D$17:$H$113,5,FALSE))","v":""},"",{"$f":"IF(OR(F77=\"\",ISNUMBER(F77)),\"\",VLOOKUP(F77,'Product & Price List'!$D$17:$H$113,3,FALSE))","v":""},null,null,0]
[null,"•  AirWatch Enterprise Mobility: Configure and Manage - Extra Person",null,null,null,null,null,{"$f":"IF(OR(F78=\"\",ISNUMBER(F78)),\"\",VLOOKUP(F78,'Product & Price List'!$D$17:$H$113,2,FALSE))","v":""},null,null,{"$f":"IF(OR(F78=\"\",ISNUMBER(F78)),\"\",VLOOKUP(F78,'Product & Price List'!$D$17:$H$113,4,FALSE))","v":""},"",null,{"$f":"IF(OR(F78=\"\",ISNUMBER(F78)),\"\",VLOOKUP(F78,'Product & Price List'!$D$17:$H$113,5,FALSE))","v":""},"",{"$f":"IF(OR(F78=\"\",ISNUMBER(F78)),\"\",VLOOKUP(F78,'Product & Price List'!$D$17:$H$113,3,FALSE))","v":""},null,null,0]
[null,"•  AirWatch Enterprise Mobility: Configure and Deploy Integrated Solutions  - Open Enrollment",null,null,null,null,null,{"$f":"IF(OR(F79=\"\",ISNUMBER(F79)),\"\",VLOOKUP(F79,'Product & Price List'!$D$17:$H$113,2,FALSE))","v":""},null,null,{"$f":"IF(OR(F79=\"\",ISNUMBER(F79)),\"\",VLOOKUP(F79,'Product & Price List'!$D$17:$H$113,4,FALSE))","v":""},{"$f":"IF(OR(F79=\"\",ISNUMBER(F79)),\"\",J79*K79)","v":""},null,{"$f":"IF(OR(F79=\"\",ISNUMBER(F79)),\"\",VLOOKUP(F79,'Product & Price List'!$D$17:$H$113,5,FALSE))","v":""},{"$f":"IF(OR(F79=\"\",ISNUMBER(F79)),\"\",J79*M79*N79)","v":""},{"$f":"IF(OR(F79=\"\",ISNUMBER(F79)),\"\",VLOOKUP(F79,'Product & Price List'!$D$17:$H$113,3,FALSE))","v":""},null,null,0]
[null,"•  AirWatch Enterprise Mobility: Configure and Deploy Integrated Solutions  - On Site or Live Online Dedicated",null,null,null,null,null,{"$f":"IF(OR(F80=\"\",ISNUMBER(F80)),\"\",VLOOKUP(F80,'Product & Price List'!$D$17:$H$113,2,FALSE))","v":""},null,null,{"$f":"IF(OR(F80=\"\",ISNUMBER(F80)),\"\",VLOOKUP(F80,'Product & Price List'!$D$17:$H$113,4,FALSE))","v":""},"",null,{"$f":"IF(OR(F80=\"\",ISNUMBER(F80)),\"\",VLOOKUP(F80,'Product & Price List'!$D$17:$H$113,5,FALSE))","v":""},"",{"$f":"IF(OR(F80=\"\",ISNUMBER(F80)),\"\",VLOOKUP(F80,'Product & Price List'!$D$17:$H$113,3,FALSE))","v":""},null,null,0]
[null,"•  AirWatch Enterprise Mobility: Configure and Deploy Integrated Solutions  - Extra Person",null,null,null,null,null,{"$f":"IF(OR(F81=\"\",ISNUMBER(F81)),\"\",VLOOKUP(F81,'Product & Price List'!$D$17:$H$113,2,FALSE))","v":""},null,null,{"$f":"IF(OR(F81=\"\",ISNUMBER(F81)),\"\",VLOOKUP(F81,'Product & Price List'!$D$17:$H$113,4,FALSE))","v":""},"",null,{"$f":"IF(OR(F81=\"\",ISNUMBER(F81)),\"\",VLOOKUP(F81,'Product & Price List'!$D$17:$H$113,5,FALSE))","v":""},"",{"$f":"IF(OR(F81=\"\",ISNUMBER(F81)),\"\",VLOOKUP(F81,'Product & Price List'!$D$17:$H$113,3,FALSE))","v":""},null,null,0]
[null,"•  AirWatch Enterprise Mobility: Install and Deploy On-Premise Solutions  - Open Enrollment",null,null,null,null,null,{"$f":"IF(OR(F82=\"\",ISNUMBER(F82)),\"\",VLOOKUP(F82,'Product & Price List'!$D$17:$H$113,2,FALSE))","v":""},null,null,{"$f":"IF(OR(F82=\"\",ISNUMBER(F82)),\"\",VLOOKUP(F82,'Product & Price List'!$D$17:$H$113,4,FALSE))","v":""},"",null,{"$f":"IF(OR(F82=\"\",ISNUMBER(F82)),\"\",VLOOKUP(F82,'Product & Price List'!$D$17:$H$113,5,FALSE))","v":""},"",{"$f":"IF(OR(F82=\"\",ISNUMBER(F82)),\"\",VLOOKUP(F82,'Product & Price List'!$D$17:$H$113,3,FALSE))","v":""},null,null,0]
[null,"•  AirWatch Enterprise Mobility: Install and Deploy On-Premise Solutions  - On Site Dedicated",null,null,null,null,null,{"$f":"IF(OR(F83=\"\",ISNUMBER(F83)),\"\",VLOOKUP(F83,'Product & Price List'!$D$17:$H$113,2,FALSE))","v":""},null,null,{"$f":"IF(OR(F83=\"\",ISNUMBER(F83)),\"\",VLOOKUP(F83,'Product & Price List'!$D$17:$H$113,4,FALSE))","v":""},"",null,{"$f":"IF(OR(F83=\"\",ISNUMBER(F83)),\"\",VLOOKUP(F83,'Product & Price List'!$D$17:$H$113,5,FALSE))","v":""},"",{"$f":"IF(OR(F83=\"\",ISNUMBER(F83)),\"\",VLOOKUP(F83,'Product & Price List'!$D$17:$H$113,3,FALSE))","v":""},null,null,0]
[null,"•  AirWatch Enterprise Mobility: Install and Deploy On-Premise Solutions  - Extra Person",null,null,null,null,null,{"$f":"IF(OR(F84=\"\",ISNUMBER(F84)),\"\",VLOOKUP(F84,'Product & Price List'!$D$17:$H$113,2,FALSE))","v":""},null,null,{"$f":"IF(OR(F84=\"\",ISNUMBER(F84)),\"\",VLOOKUP(F84,'Product & Price List'!$D$17:$H$113,4,FALSE))","v":""},"",null,{"$f":"IF(OR(F84=\"\",ISNUMBER(F84)),\"\",VLOOKUP(F84,'Product & Price List'!$D$17:$H$113,5,FALSE))","v":""},"",{"$f":"IF(OR(F84=\"\",ISNUMBER(F84)),\"\",VLOOKUP(F84,'Product & Price List'!$D$17:$H$113,3,FALSE))","v":""},null,null,0]
[null,"•  AirWatch Enterprise Mobility: Bootcamp (4 day Configure/Manage and Configure/Deploy Integrated Solutions) - Open Enrollment",null,null,null,null,null,{"$f":"IF(OR(F85=\"\",ISNUMBER(F85)),\"\",VLOOKUP(F85,'Product & Price List'!$D$17:$H$113,2,FALSE))","v":""},null,null,{"$f":"IF(OR(F85=\"\",ISNUMBER(F85)),\"\",VLOOKUP(F85,'Product & Price List'!$D$17:$H$113,4,FALSE))","v":""},"",null,{"$f":"IF(OR(F85=\"\",ISNUMBER(F85)),\"\",VLOOKUP(F85,'Product & Price List'!$D$17:$H$113,5,FALSE))","v":""},"",{"$f":"IF(OR(F85=\"\",ISNUMBER(F85)),\"\",VLOOKUP(F85,'Product & Price List'!$D$17:$H$113,3,FALSE))","v":""},null,null,0]
[null,"•  AirWatch Enterprise Mobility: Bootcamp (4 day Configure/Manage and Config/Deploy Integrated Solutions) - On Site Dedicated",null,null,null,null,null,null,null,null,null,null,null,null,null,"SUBTOTAL:",null,null,{"$f":"SUM(S76:S85)","v":0}]
[null,"•  AirWatch Enterprise Mobility: Bootcamp (4 day Configure/Manage and Config/Deploy Integrated Solutions) - Extra Person"]
[null,"•  AirWatch Enterprise Mobility: Associate Accreditation"]
[null,"•  AirWatch Enterprise Mobility: Professional Accreditation"]
[null,"•  AirWatch Enterprise Mobility: Expert Accreditation",null,null,null,"EXISTING LICENSE UPGRADES",null,null,null,"License Fees"]
[null,"•  AirWatch Enterprise Mobility: K12 Education Accreditation",null,null,null,"Product",null,"Product Code",null,"Qty","License Fee","License Total",null,null,null,null,null,null,"Total Cost"]
[null,"•  AirWatch Academy Associate Certification Training - Dedicated On Site or via WebEx; Online Exam incl; T&E not incl; min of 3",null,null,null,null,null,{"$f":"IF(OR(F92=\"\",ISNUMBER(F92)),\"\",VLOOKUP(F92,'Product & Price List'!#REF!,2,FALSE))","v":""},null,null,{"$f":"IF(OR(F92=\"\",ISNUMBER(F92)),\"\",VLOOKUP(F92,'Product & Price List'!#REF!,4,FALSE))","v":""},{"$f":"IF(OR(F92=\"\",ISNUMBER(F92)),\"\",J92*K92)","v":""},null,{"$f":"IF(OR(F92=\"\",ISNUMBER(F92)),\"\",VLOOKUP(F92,'Product & Price List'!#REF!,5,FALSE))","v":""},{"$f":"IF(OR(F92=\"\",ISNUMBER(F92)),\"\",J92*M92*N92)","v":""},{"$f":"IF(OR(F92=\"\",ISNUMBER(F92)),\"\",VLOOKUP(F92,'Product & Price List'!#REF!,3,FALSE))","v":""},null,null,{"$f":"IF(OR(F92=\"\",ISNUMBER(F92)),0,L92+O92)","v":0}]
[null,"•  AirWatch Academy Associate Certification Training - AirWatch Site; Online Exam included",null,null,null,{"$f":"IF(NOT(H92=\"\"),\"*Prorated Maint Fee for Upgrade Must Be calculated by OARnet\",\"\")","v":""},null,null,null,null,null,null,null,null,{"$f":"IF(H92=\"\",\"\",N93)","v":""},null,null,null,{"$f":"IF(H92=\"\",\"\",N93)","v":""}]
[null,"•  AirWatch Academy Associate Online Certification Exam",null,null,null,null,null,{"$f":"IF(OR(F94=\"\",ISNUMBER(F94)),\"\",VLOOKUP(F94,'Product & Price List'!#REF!,2,FALSE))","v":""},null,null,{"$f":"IF(OR(F94=\"\",ISNUMBER(F94)),\"\",VLOOKUP(F94,'Product & Price List'!#REF!,4,FALSE))","v":""},{"$f":"IF(OR(F94=\"\",ISNUMBER(F94)),\"\",J94*K94)","v":""},null,{"$f":"IF(OR(F94=\"\",ISNUMBER(F94)),\"\",VLOOKUP(F94,'Product & Price List'!#REF!,5,FALSE))","v":""},{"$f":"IF(OR(F94=\"\",ISNUMBER(F94)),\"\",J94*M94*N94)","v":""},{"$f":"IF(OR(F94=\"\",ISNUMBER(F94)),\"\",VLOOKUP(F94,'Product & Price List'!#REF!,3,FALSE))","v":""},null,null,{"$f":"IF(OR(F94=\"\",ISNUMBER(F94)),0,L94+O94)","v":0}]
[null,"•  AirWatch Academy Professional Certification Training - Dedicated On Site or via WebEx; Online Exam incl; T&E not incl; min of 3",null,null,null,{"$f":"IF(NOT(H94=\"\"),\"*Prorated Maint Fee for Upgrade Must Be calculated by OARnet\",\"\")","v":""},null,null,null,null,null,null,null,null,null,null,null,null,{"$f":"IF(H94=\"\",\"\",N95)","v":""}]
[null,"•  AirWatch Academy Professional Certification Training - AirWatch Site; Online Exam included",null,null,null,null,null,{"$f":"IF(OR(F96=\"\",ISNUMBER(F96)),\"\",VLOOKUP(F96,'Product & Price List'!#REF!,2,FALSE))","v":""},null,null,{"$f":"IF(OR(F96=\"\",ISNUMBER(F96)),\"\",VLOOKUP(F96,'Product & Price List'!#REF!,4,FALSE))","v":""},{"$f":"IF(OR(F96=\"\",ISNUMBER(F96)),\"\",J96*K96)","v":""},null,{"$f":"IF(OR(F96=\"\",ISNUMBER(F96)),\"\",VLOOKUP(F96,'Product & Price List'!#REF!,5,FALSE))","v":""},{"$f":"IF(OR(F96=\"\",ISNUMBER(F96)),\"\",J96*M96*N96)","v":""},{"$f":"IF(OR(F96=\"\",ISNUMBER(F96)),\"\",VLOOKUP(F96,'Product & Price List'!#REF!,3,FALSE))","v":""},null,null,{"$f":"IF(OR(F96=\"\",ISNUMBER(F96)),0,L96+O96)","v":0}]
[null,"•  AirWatch Academy Professional Online Certification Exam",null,null,null,{"$f":"IF(NOT(H96=\"\"),\"*Prorated Maint Fee for Upgrade Must Be calculated by OARnet\",\"\")","v":""},null,null,null,null,null,null,null,null,{"$f":"IF(H96=\"\",\"\",N97)","v":""},null,null,null,{"$f":"IF(H96=\"\",\"\",N97)","v":""}]
[null,"•  AirWatch Academy Expert - Installs/Upgrades - Certification Training - AirWatch Site; Online Exam included",null,null,null,null,null,{"$f":"IF(OR(F98=\"\",ISNUMBER(F98)),\"\",VLOOKUP(F98,'Product & Price List'!#REF!,2,FALSE))","v":""},null,null,{"$f":"IF(OR(F98=\"\",ISNUMBER(F98)),\"\",VLOOKUP(F98,'Product & Price List'!#REF!,4,FALSE))","v":""},{"$f":"IF(OR(F98=\"\",ISNUMBER(F98)),\"\",J98*K98)","v":""},null,{"$f":"IF(OR(F98=\"\",ISNUMBER(F98)),\"\",VLOOKUP(F98,'Product & Price List'!#REF!,5,FALSE))","v":""},{"$f":"IF(OR(F98=\"\",ISNUMBER(F98)),\"\",J98*M98*N98)","v":""},{"$f":"IF(OR(F98=\"\",ISNUMBER(F98)),\"\",VLOOKUP(F98,'Product & Price List'!#REF!,3,FALSE))","v":""},null,null,{"$f":"IF(OR(F98=\"\",ISNUMBER(F98)),0,L98+O98)","v":0}]
[null,"•  AirWatch Academy Expert Online Certification Exam",null,null,null,{"$f":"IF(NOT(H98=\"\"),\"*Prorated Maint Fee for Upgrade Must Be calculated by OARnet\",\"\")","v":""},null,null,null,null,null,null,null,null,{"$f":"IF(H98=\"\",\"\",N99)","v":""},null,null,null,{"$f":"IF(H98=\"\",\"\",N99)","v":""}]
[null,"•  AirWatch Academy Associate, Professional and Expert Certification Training Bootcamp-AirWatch Site;Related Online Exams Incl",null,null,null,null,null,{"$f":"IF(OR(F100=\"\",ISNUMBER(F100)),\"\",VLOOKUP(F100,'Product & Price List'!#REF!,2,FALSE))","v":""},null,null,{"$f":"IF(OR(F100=\"\",ISNUMBER(F100)),\"\",VLOOKUP(F100,'Product & Price List'!#REF!,4,FALSE))","v":""},{"$f":"IF(OR(F100=\"\",ISNUMBER(F100)),\"\",J100*K100)","v":""},null,{"$f":"IF(OR(F100=\"\",ISNUMBER(F100)),\"\",VLOOKUP(F100,'Product & Price List'!#REF!,5,FALSE))","v":""},{"$f":"IF(OR(F100=\"\",ISNUMBER(F100)),\"\",J100*M100*N100)","v":""},{"$f":"IF(OR(F100=\"\",ISNUMBER(F100)),\"\",VLOOKUP(F100,'Product & Price List'!#REF!,3,FALSE))","v":""},null,null,{"$f":"IF(OR(F100=\"\",ISNUMBER(F100)),0,L100+O100)","v":0}]
[null,"•  2 day Associate or Professional 10+ Group Certific Training-Ded On Site & via WebEx; Online Exam incl; T&E not incl;max of 25",null,null,null,{"$f":"IF(NOT(H100=\"\"),\"*Prorated Maint Fee for Upgrade Must Be calculated by OARnet\",\"\")","v":""},null,null,null,null,null,null,null,null,{"$f":"IF(H100=\"\",\"\",N101)","v":""},null,null,null,{"$f":"IF(H100=\"\",\"\",N101)","v":""}]
[null,"•  AirWatch Academy Associate, Professional and Expert Certification Training (Bootcamp)",null,null,null,null,null,null,null,null,null,null,null,null,null,"SUBTOTAL:",null,null,{"$f":"SUM(S92:S101)","v":0}]
[null,"•  AirWatch Academy Expert - Installs/Upgrades - Certification Training"]
[null,"•  AirWatch Professional Services - 8 hours of support services, One Time Fee"]
[null,"•  AirWatch Standby Support (Monday - Friday), One Time Fee"]
[null,"•  AirWatch Standby Support (Weekend), One Time Fee"]
[null,"•  AirWatch Incident Support Package, 5 pack",null,null,null,null,null,null,null,null,null,null,null,null,null," To generate a quote, click on the Quote Button above or Tab below after making selection(s) on the \"Order Summary Page.\""]
[null,"•  AirWatch Professional Services Travel and Expense - daily, One Time Fee"]
[null,"•  AirWatch Teacher Tools Deployment, One Time Fee",null,null,null,null,"                  "]
[null,"•  Identity Manager Shared Cloud Deployment, One Time Fee"]
[null,"•  Identity Manager On Premise Deployment, One Time Fee"]
[null,"•  AirWatch Dedicated Cloud Upgrade off-hours, One Time Fee"]
[]
[]
[null,null,null,null,null,"MAINTENANCE RENEWAL of EXISTING VMWARE LICENSES"]
[null,null,null,null,null,null,null,null,null,null,null,null,null,null,null,{"$f":"SUM(S102,L108,M127:N127, S86)","v":0}]
[null,null,null,null,null,null,null,{"$f":"IF(OR(F117=\"\",ISNUMBER(F117)),\"\",VLOOKUP(F117,'Product & Price List'!#REF!,2,FALSE))","v":""},null,null,null,{"$f":"IF(OR(F117=\"\",ISNUMBER(F117)),\"\",VLOOKUP(F117,'Product & Price List'!#REF!,3,FALSE))","v":""}]
[null,null,null,null,null,null,null,{"$f":"IF(OR(F118=\"\",ISNUMBER(F118)),\"\",VLOOKUP(F118,'Product & Price List'!#REF!,2,FALSE))","v":""},null,null,null,{"$f":"IF(OR(F118=\"\",ISNUMBER(F118)),\"\",VLOOKUP(F118,'Product & Price List'!#REF!,3,FALSE))","v":""},null,null,null,"Purchase Orders must be submitted with this order form. PO Vendor address:    OSU/OARnet 1224 Kinnear Rd\nColumbus, OH  43212\n\nCredit Card payment is accepted at time of order placement for a maximum of $10,000."]
[null,null,null,null,null,null,null,{"$f":"IF(OR(F119=\"\",ISNUMBER(F119)),\"\",VLOOKUP(F119,'Product & Price List'!#REF!,2,FALSE))","v":""},null,null,null,{"$f":"IF(OR(F119=\"\",ISNUMBER(F119)),\"\",VLOOKUP(F119,'Product & Price List'!#REF!,3,FALSE))","v":""}]
[null,null,null,null,null,null,null,{"$f":"IF(OR(F120=\"\",ISNUMBER(F120)),\"\",VLOOKUP(F120,'Product & Price List'!#REF!,2,FALSE))","v":""},null,null,null,{"$f":"IF(OR(F120=\"\",ISNUMBER(F120)),\"\",VLOOKUP(F120,'Product & Price List'!#REF!,3,FALSE))","v":""}]
[null,null,null,null,null,null,null,{"$f":"IF(OR(F121=\"\",ISNUMBER(F121)),\"\",VLOOKUP(F121,'Product & Price List'!#REF!,2,FALSE))","v":""},null,null,null,{"$f":"IF(OR(F121=\"\",ISNUMBER(F121)),\"\",VLOOKUP(F121,'Product & Price List'!#REF!,3,FALSE))","v":""}]
[null,null,null,null,null,null,null,{"$f":"IF(OR(F122=\"\",ISNUMBER(F122)),\"\",VLOOKUP(F122,'Product & Price List'!#REF!,2,FALSE))","v":""},null,null,null,{"$f":"IF(OR(F122=\"\",ISNUMBER(F122)),\"\",VLOOKUP(F122,'Product & Price List'!#REF!,3,FALSE))","v":""},null,null,null,"SUBMIT Completed and Signed ORDER FORM, along with a PO:\nEMAIL:\n - The State of Ohio:\n     vmware-stateofohio@oar.net\n -  Higher Education:     \n    vmware-higher-education@oar.net\n -  K12:  vmware-k12@oar.net\nFax:        614-292-9390 \nMail:     1224 Kinnear Rd.\n                 Columbus, OH 43212"]
[null,null,null,null,null,null,null,{"$f":"IF(OR(F123=\"\",ISNUMBER(F123)),\"\",VLOOKUP(F123,'Product & Price List'!#REF!,2,FALSE))","v":""},null,null,null,{"$f":"IF(OR(F123=\"\",ISNUMBER(F123)),\"\",VLOOKUP(F123,'Product & Price List'!#REF!,3,FALSE))","v":""}]
[null,null,null,null,null,null,null,{"$f":"IF(OR(F124=\"\",ISNUMBER(F124)),\"\",VLOOKUP(F124,'Product & Price List'!#REF!,2,FALSE))","v":""},null,null,null,{"$f":"IF(OR(F124=\"\",ISNUMBER(F124)),\"\",VLOOKUP(F124,'Product & Price List'!#REF!,3,FALSE))","v":""}]
[null,null,null,null,null,null,null,{"$f":"IF(OR(F125=\"\",ISNUMBER(F125)),\"\",VLOOKUP(F125,'Product & Price List'!#REF!,2,FALSE))","v":""},null,null,null,{"$f":"IF(OR(F125=\"\",ISNUMBER(F125)),\"\",VLOOKUP(F125,'Product & Price List'!#REF!,3,FALSE))","v":""}]
[null,null,null,null,null,null,null,{"$f":"IF(OR(F126=\"\",ISNUMBER(F126)),\"\",VLOOKUP(F126,'Product & Price List'!#REF!,2,FALSE))","v":""},null,null,null,{"$f":"IF(OR(F126=\"\",ISNUMBER(F126)),\"\",VLOOKUP(F126,'Product & Price List'!#REF!,3,FALSE))","v":""}]

{"sheet":"Product & Price List","index":1,"n_rows":114,"n_cols":12,"rows_kept":114,"cut":false,"hidden":false,"merged":[[15,3,15,7],[2,6,2,7],[3,6,3,7],[5,6,5,7],[9,6,9,7],[10,6,10,7],[11,6,11,7],[12,6,12,7]]}
[]
[null,null,null,"NEW PRODUCTS","Airwatch for K-12 - Cloud Based"]
[null,null,null,"GO TO (Product Name/Family):"]
[]
[]
[]
[]
[null,null,null,null,null,null,null,null,null,null,null,"   NOTES:"]
[]
[null,null,null,null,null,null,null,null,null,null,null,"   All product support under this contract is at the VMware Production Level."]
[null,null,null,null,null,null,null,null,null,null,null,"   All products require the license and maintenance to be purchased from OARnet."]
[]
[]
[]
[]
[null,null,null,"New Airwatch Products & Pricing",null,null,null,null,null,"Version 2"]
[null,null,null,"Product","Product Code",null,"License Fee"]
[]
[]
[null,null,null,"AIRWATCH FOR K-12 - CLOUD BASED"]
[null,null,null,"•  AirWatch Ste for K-12 Educ Instit 2-yr Subscr-Shared Cloud for 1 Device(Incl SaaS Prod Supprt/Subscr)","V-K12-CLD-D-2P-A",null,18]
[null,null,null,"•  AirWatch Ste for K-12 Educ Instit 3-yr Subscr-Shared Cloud for 1 Device(Incl SaaS Prod Supprt/Subscr)","V-K12-CLD-D-3P-A",null,24.67]
[null,null,null,"•  AirWatch Ste for K-12 Educ Instit 1-yr Subscr-Shared Cloud for 1 Device(Incl SaaS Prod Supprt/Subscr)","V-K12-CLD-D-P-A",null,9.33]
[null,null,null,"•  AirWatch Ste for K-12 Educ Instit 2-yr Subscr - Dedicated Cloud for 1 Device (Incl SaaS Prod Supprt/Subscr)","V-K12-DLD-D-2P-A",null,29.33]
[null,null,null,"•  AirWatch Ste for K-12 Educ Inst 3-yr Subscr - Dedicated Cloud for 1 Device (Incl SaaS Prod Supprt/Subscr)","V-K12-DLD-D-3P-A",null,40.67]
[null,null,null,"•  AirWatch Ste for K-12 Educ Inst 1-yr Subscr - Dedicated Cloud for 1 Device (Incl SaaS Prod Supprt/Subscr)","V-K12-DLD-D-P-A",null,15.33]
[null,null,null,"•  AirWatch Ste for K-12 Educ Inst with Teacher Tools 2-yr Subscr - Shared Cloud for 1 Device (Incl SaaS Prod Supprt/Subscr)","V-K1T-CLD-D-2P-A",null,22.67]
[null,null,null,"•  AirWatch Ste for K-12 Educ Inst with Teacher Tools 3-yr Subscr - Shared Cloud for 1 Device (Incl SaaS Prod Supprt/Subscr)","V-K1T-CLD-D-3P-A",null,32]
[null,null,null,"•  AirWatch Ste for K-12 Educ Inst with Teacher Tools 1-yr Subscr - Shared Cloud for 1 Device (Incl SaaS Prod Supprt/Subscr)","V-K1T-CLD-D-P-A",null,12]
[null,null,null,"•  AirWatch Ste for K-12 Educ Inst with Teacher Tools 2-yr Subscr - Dedicated Cloud for 1 Device (Incl SaaS Prod Supprt/Subscr)","V-K1T-DLD-D-2P-A",null,34]
[null,null,null,"•  AirWatch Ste for K-12 Educ Inst with Teacher Tools 1-yr Subscr - Dedicated Cloud for 1 Device (Incl SaaS Prod Supprt/Subscr)","V-K1T-DLD-D-3P-A",null,48]
[null,null,null,"•  AirWatch Ste for K-12 Educ Inst with Teacher Tools 3-yr Subscr - Dedicated Cloud for 1 Device (Incl SaaS Prod Supprt/Subscr)","V-K1T-DLD-D-P-A",null,18]
[null,null,null,"•  AirWatch Ste for K-12 Educational Inst 2-yr Subscr - Shared Cloud for 1 Device (Incl SaaS Basic Support/Subscr)","V-K12-CLD-D-2G-A",null,16.670000000000002]
[null,null,null,"•  AirWatch Ste for K-12 Educational Inst 3-yr Subscr - Shared Cloud for 1 Device (Incl SaaS Basic Support/Subscr)","V-K12-CLD-D-3G-A",null,23.33]
[null,null,null,"•  AirWatch Ste for K-12 Educational Inst 1-yr Subscr - Shared Cloud for 1 Device (Incl SaaS Basic Support/Subscr)","V-K12-CLD-D-G-A",null,8.67]
[null,null,null,"•  AirWatch Ste for K-12 Educational Inst 2-yr Subscr - Dedicated Cloud for 1 Device (Incl SaaS Basic Support/Subscr)","V-K12-DLD-D-2G-A",null,28]
[null,null,null,"•  AirWatch Ste for K-12 Educational Inst 3-yr Subscr - Dedicated Cloud for 1 Device (Incl SaaS Basic Support/Subscr)","V-K12-DLD-D-3G-A",null,39.33]
[null,null,null,"•  AirWatch Ste for K-12 Educational Inst 1-yr Subscr - Dedicated Cloud for 1 Device (Incl SaaS Basic Support/Subscr)","V-K12-DLD-D-G-A",null,14.67]
[null,null,null,"•  AirWatch Ste for K-12 Educational Inst with Teacher Tools 2-yr Subscr - Shared Cloud for 1 Device (Incl SaaS Basic Support/Subscr)","V-K1T-CLD-D-2G-A",null,20.67]
[null,null,null,"•  AirWatch Ste for K-12 Educational Inst with Teacher Tools 3-yr Subscr - Shared Cloud for 1 Device (Incl SaaS Basic Support/Subscr)","V-K1T-CLD-D-3G-A",null,28.67]
[null,null,null,"•  AirWatch Ste for K-12 Educational Inst with Teacher Tools 1-yr Subscr - Shared Cloud for 1 Device (Incl SaaS Basic Support/Subscr)","V-K1T-CLD-D-G-A",null,10.67]
[null,null,null,"•  AirWatch Ste for K-12 Educational Inst with Teacher Tools 2-yr Subscr - Dedicated Cloud for 1 Device (Incl SaaS Basic Support/Subscr)","V-K1T-DLD-D-2G-A",null,31.33]
[null,null,null,"•  AirWatch Ste for K-12 Educational Inst with Teacher Tools 3-yr Subscr - Dedicated Cloud for 1 Device (Incl SaaS Basic Support/Subscr)","V-K1T-DLD-D-3G-A",null,44]
[null,null,null,"•  AirWatch Ste for K-12 Educational Inst with Teacher Tools 1-yr Subscr - Dedicated Cloud for 1 Device (Incl SaaS Basic Support/Subscr)","V-K1T-DLD-D-G-A",null,16.670000000000002]
[null,null,null,"•  AirWatch Basic Migration Configuration and Deployment On Premise Deployment Fee, One Time Fee","V-PS-MIG-BASIC-OP",null,2500]
[null,null,null,"•  AirWatch Basic Migration Configuration and Deployment Cloud Deployment, One Time Fee","V-PS-MIG-BASIC-SP",null,1500]
[null,null,null,"•  AirWatch PKI Certificate Basic Configuration and Deployment, One Time Fee","V-PS-PKI-BASIC-SP",null,1200]
[null,null,null,"•  AirWatch Green Management Suite Cloud Deployment Fee, One Time Fee","V-PS-GMS-CLD-SP",null,1500]
[null,null,null,"•  AirWatch Orange Management Suite Cloud Deployment Fee, One Time Fee","V-PS-OMS-CLD-SP",null,2000]
[null,null,null,"•  AirWatch Blue Management Suite Cloud Deployment Fee, One Time Fee","V-PS-BMS-CLD-SP",null,4500]
[null,null,null,"•  AirWatch Yellow Management Suite Cloud Deployment Fee, One Time Fee","V-PS-YMS-CLD-SP",null,5500]
[null,null,null,"•  AirWatch Enterprise Gold SaaS Cloud Deployment up to 100,000 devices, One Time Fee","V-PS-GLD-CLD-SP",null,37500]
[null,null,null,"•  AirWatch Enterprise Silver SaaS Cloud Deployment up to 50,000 devices, One Time Fee","V-PS-SLV-CLD-SP",null,20000]
[null,null,null,"•  AirWatch Enterprise Support, 1 Year Fee per Geography or Business Unit","V-PS-ENT-SUP-GEO",null,25000]
[null,null,null,"•  AirWatch Technical Account Manager, can be purchased by AirWatch Production or Enterprise Customers","V-PS-TAM",null,69995]
[null,null,null,"•  AirWatch Accelerated Deployment Add-On, One Time Fee","V-PS-ACCELERATE",null,5500]
[null,null,null,"•  AirWatch Per App Tunneling Configuration, One Time Fee","V-PS-APP-VPN-SP",null,750]
[null,null,null,"•  AirWatch Application Server Migration","V-PS-APSV-MG-SP",null,1000]
[null,null,null,"•  AirWatch Reports Server Configuration and Deployment, One Time Fee","V-PS-AW-RPT-SP",null,500]
[null,null,null,"•  AirWatch Database Server Migration","V-PS-DBSV-MG-SP",null,500]
[null,null,null,"•  AirWatch Device Enrollment Program (DEP) Configuration and Deployment, One Time Fee","V-PS-DEP-SP",null,500]
[null,null,null,"•  AirWatch Cloud - Dedicated Environment Setup, One Time Fee / Environment","V-PS-DHE-SET",null,10000]
[null,null,null,"•  AirWatch Cloud - Dedicated UAT Environment, Annual Fee / Environment","V-PS-DHE-UAT",null,10000]
[null,null,null,"•  AirWatch Disaster Recovery Set-up Fee","V-PS-DR-SP",null,1200]
[null,null,null,"•  AirWatch Cloud Connector (ACC) Configuration and Deployment - Enterprise Integration, One Time Fee","V-PS-ENT-ACC-SP",null,500]
[null,null,null,"•  AirWatch Telecom Module Deployment, One Time Fee","V-PS-AWT-SP",null,500]
[null,null,null,"•  AirWatch K12 Suite Cloud Deployment, One Time Fee","V-PS-K12-CLD-SP",null,2250]
[null,null,null,"•  AirWatch K12 Suite with Teacher Tools Cloud Deployment, One Time Fee","V-PS-K12T-CLD-SP",null,2750]
[null,null,null,"•  AirWatch K12 Suite + MAG Cloud Deployment Fee, One Time Fee","V-PS-K12-MAGCL-SP",null,3250]
[null,null,null,"•  AirWatch K12 Suite with Teacher Tools + MAG Cloud Deployment Fee, One Time Fee","V-PS-K12T-MAGCL-SP",null,3750]
[null,null,null,"•  AirWatch High Availability Set-up, One Time Fee","V-PS-HA-SP",null,1200]
[null,null,null,"•  AirWatch Health Check , One Time Fee","V-PS-HC",null,2500]
[null,null,null,"•  AirWatch Professional Services - 1 hour of support services, One Time Fee","V-PS-HR-PS",null,150]
[null,null,null,"•  AirWatch Enterprise Mobility: K12 Education - Open Enrollment","EDU-AW-K12-OE",null,1650]
[null,null,null,"•  AirWatch Enterprise Mobility: K12 Education - On Site or Live Online Dedicated","EDU-AW-K12-OS",null,9900]
[null,null,null,"•  AirWatch Enterprise Mobility: K12 Education - Extra Person","EDU-AW-K12-XP",null,1320]
[null,null,null,"•  AirWatch Enterprise Mobility: Configure and Manage - Open Enrollment","EDU-AW-MANAGE-OE",null,1650]
[null,null,null,"•  AirWatch Enterprise Mobility: Configure and Manage - On Site or Live Online Dedicated","EDU-AW-MANAGE-OS",null,9900]
[null,null,null,"•  AirWatch Enterprise Mobility: Configure and Manage - Extra Person","EDU-AW-MANAGE-XP",null,1320]
[null,null,null,"•  AirWatch Enterprise Mobility: Configure and Deploy Integrated Solutions  - Open Enrollment","EDU-AW-INTEG-OE",null,1650]
[null,null,null,"•  AirWatch Enterprise Mobility: Configure and Deploy Integrated Solutions  - On Site or Live Online Dedicated","EDU-AW-INTEG-OS",null,9900]
[null,null,null,"•  AirWatch Enterprise Mobility: Configure and Deploy Integrated Solutions  - Extra Person","EDU-AW-INTEG-XP",null,1320]
[null,null,null,"•  AirWatch Enterprise Mobility: Install and Deploy On-Premise Solutions  - Open Enrollment","EDU-AW-ONPREM-OE",null,895]
[null,null,null,"•  AirWatch Enterprise Mobility: Install and Deploy On-Premise Solutions  - On Site Dedicated","EDU-AW-ONPREM-OS",null,5370]
[null,null,null,"•  AirWatch Enterprise Mobility: Install and Deploy On-Premise Solutions  - Extra Person","EDU-AW-ONPREM-XP",null,716]
[null,null,null,"•  AirWatch Enterprise Mobility: Bootcamp (4 day Configure/Manage and Configure/Deploy Integrated Solutions) - Open Enrollment","EDU-AW-BTCMP-OE",null,2800]
[null,null,null,"•  AirWatch Enterprise Mobility: Bootcamp (4 day Configure/Manage and Config/Deploy Integrated Solutions) - On Site Dedicated","EDU-AW-BTCMP-OS",null,16800]
[null,null,null,"•  AirWatch Enterprise Mobility: Bootcamp (4 day Configure/Manage and Config/Deploy Integrated Solutions) - Extra Person","EDU-AW-BTCMP-XP",null,2240]
[null,null,null,"•  AirWatch Enterprise Mobility: Associate Accreditation","EDU-AW-ASSOC-EXAM",null,150]
[null,null,null,"•  AirWatch Enterprise Mobility: Professional Accreditation","EDU-AW-PRO-EXAM",null,200]
[null,null,null,"•  AirWatch Enterprise Mobility: Expert Accreditation","EDU-AW-EXP-EXAM",null,250]
[null,null,null,"•  AirWatch Enterprise Mobility: K12 Education Accreditation","EDU-AW-K12-EXAM",null,100]
[null,null,null,"•  AirWatch Academy Associate Certification Training - Dedicated On Site or via WebEx; Online Exam incl; T&E not incl; min of 3","PS-TRN-PKG",null,2000]
[null,null,null,"•  AirWatch Academy Associate Certification Training - AirWatch Site; Online Exam included","PS-TRN-PKG-AW",null,1000]
[null,null,null,"•  AirWatch Academy Associate Online Certification Exam","PS-CERT-EMA",null,1000]
[null,null,null,"•  AirWatch Academy Professional Certification Training - Dedicated On Site or via WebEx; Online Exam incl; T&E not incl; min of 3","PS-TRN-PKG-PRO",null,2000]
[null,null,null,"•  AirWatch Academy Professional Certification Training - AirWatch Site; Online Exam included","PS-TRN-PKG-PRO-AW",null,1000]
[null,null,null,"•  AirWatch Academy Professional Online Certification Exam","PS-CERT-PRO",null,1000]
[null,null,null,"•  AirWatch Academy Expert - Installs/Upgrades - Certification Training - AirWatch Site; Online Exam included","PS-TRN-PKG-EXP-AW",null,1000]
[null,null,null,"•  AirWatch Academy Expert Online Certification Exam","PS-CERT-EXP",null,1000]
[null,null,null,"•  AirWatch Academy Associate, Professional and Expert Certification Training Bootcamp-AirWatch Site;Related Online Exams Incl","PS-TRN-PKG-BTCMP-AW",null,2500]
[null,null,null,"•  2 day Associate or Professional 10+ Group Certific Training-Ded On Site & via WebEx; Online Exam incl; T&E not incl;max of 25","PS-TRN-GRP",null,15000]
[null,null,null,"•  AirWatch Academy Associate, Professional and Expert Certification Training (Bootcamp)","PS-TRN-PKG-BTCMP",null,2500]
[null,null,null,"•  AirWatch Academy Expert - Installs/Upgrades - Certification Training","PS-TRN-PKG-EXP",null,1000]
[null,null,null,"•  AirWatch Professional Services - 8 hours of support services, One Time Fee","V-PS-SP-DAY",null,1200]
[null,null,null,"•  AirWatch Standby Support (Monday - Friday), One Time Fee","V-PS-STBS-WD-PS",null,5000]
[null,null,null,"•  AirWatch Standby Support (Weekend), One Time Fee","V-PS-STBS-WE-PS",null,10000]
[null,null,null,"•  AirWatch Incident Support Package, 5 pack","V-PS-SUPP-INC",null,1000]
[null,null,null,"•  AirWatch Professional Services Travel and Expense - daily, One Time Fee","V-PS-TE-AW",null,610]
[null,null,null,"•  AirWatch Teacher Tools Deployment, One Time Fee","V-PS-TT-SP",null,500]
[null,null,null,"•  Identity Manager Shared Cloud Deployment, One Time Fee","V-PS-VIDM-CLD-SP",null,1200]
[null,null,null,"•  Identity Manager On Premise Deployment, One Time Fee","V-PS-VIDM-OP-SP",null,1800]
[null,null,null,"•  AirWatch Dedicated Cloud Upgrade off-hours, One Time Fee","V-PS-UPGR-OFFHOURS",null,2500]
[null,null,null,"•  AirWatch Cloud - Shared Environment for Perpetual Licenses: 1 Device for 1 year\n","V-HOS-CLD-D-A",null,6]

{"sheet":"Click to Quote","index":2,"n_rows":69,"n_cols":11,"rows_kept":69,"cut":false,"hidden":false,"merged":[[41,0,41,1],[35,0,35,1],[60,0,60,1],[61,0,61,1],[57,0,57,1],[54,0,54,1],[55,0,55,1],[56,0,56,1],[36,0,36,1],[37,0,37,1],[38,0,38,1],[39,0,39,1],[40,0,40,1],[44,0,44,1],[51,0,51,1],[52,0,52,1],[53,0,53,1],[42,0,42,1],[43,0,43,1],[45,0,45,1],[48,0,48,1],[49,0,49,1],[50,0,50,1],[12,0,12,10],[22,0,22,1],[23,0,23,1],[24,0,24,1],[25,0,25,1],[21,0,21,1],[26,0,26,1],[20,0,20,2],[20,3,20,5],[20,6,20,9],[34,0,34,2],[34,3,34,5],[34,6,34,9],[27,0,27,1],[28,0,28,1],[29,0,29,1],[30,0,30,1],[31,0,31,1]]}
[]
[]
[]
[]
[]
[]
[]
[]
[]
[]
[]
[]
["VMware Price Quote"]
[]
["Quote #:",{"$f":"CONCATENATE(\"OAR\",ROUND(NOW(),2),ROUND((RAND()*10000),0))","v":"OAR42635.6297"},null,null,null,null,null,null,null,"Date:",{"$f":"TODAY()","v":"2016-09-22"}]
[]
["Customer Name:",{"$f":"IF('VMware FINAL ORDER SUMMARY'!$H$51=FALSE,\"\",'VMware FINAL ORDER SUMMARY'!$H$51)","v":""}]
[]
[]
["New Licenses"]
["VMware Products",null,null,"License Fees",null,null,"Maintenance Fees"]
["Product",null,"Product Code","Qty","License Fee","License Total","SnS Term","SnS Fee","SnS Total","SnS Code","Total Cost"]
[{"$f":"'VMware FINAL ORDER SUMMARY'!$F76","v":0},null,{"$f":"'VMware FINAL ORDER SUMMARY'!H76","v":""},{"$f":"'VMware FINAL ORDER SUMMARY'!J76","v":0},{"$f":"'VMware FINAL ORDER SUMMARY'!K76","v":""},{"$f":"'VMware FINAL ORDER SUMMARY'!L76","v":""},{"$f":"'VMware FINAL ORDER SUMMARY'!M76","v":0},{"$f":"'VMware FINAL ORDER SUMMARY'!N76","v":""},{"$f":"'VMware FINAL ORDER SUMMARY'!O76","v":""},{"$f":"'VMware FINAL ORDER SUMMARY'!P76","v":""},{"$f":"'VMware FINAL ORDER SUMMARY'!S76","v":0}]
[{"$f":"'VMware FINAL ORDER SUMMARY'!$F77","v":0},null,{"$f":"'VMware FINAL ORDER SUMMARY'!H77","v":""},{"$f":"'VMware FINAL ORDER SUMMARY'!J77","v":0},{"$f":"'VMware FINAL ORDER SUMMARY'!K77","v":""},{"$f":"'VMware FINAL ORDER SUMMARY'!L77","v":""},{"$f":"'VMware FINAL ORDER SUMMARY'!M77","v":0},{"$f":"'VMware FINAL ORDER SUMMARY'!N77","v":""},{"$f":"'VMware FINAL ORDER SUMMARY'!O77","v":""},{"$f":"'VMware FINAL ORDER SUMMARY'!P77","v":""},{"$f":"'VMware FINAL ORDER SUMMARY'!S77","v":0}]
[{"$f":"'VMware FINAL ORDER SUMMARY'!$F78","v":0},null,{"$f":"'VMware FINAL ORDER SUMMARY'!H78","v":""},{"$f":"'VMware FINAL ORDER SUMMARY'!J78","v":0},{"$f":"'VMware FINAL ORDER SUMMARY'!K78","v":""},{"$f":"'VMware FINAL ORDER SUMMARY'!L78","v":""},{"$f":"'VMware FINAL ORDER SUMMARY'!M78","v":0},{"$f":"'VMware FINAL ORDER SUMMARY'!N78","v":""},{"$f":"'VMware FINAL ORDER SUMMARY'!O78","v":""},{"$f":"'VMware FINAL ORDER SUMMARY'!P78","v":""},{"$f":"'VMware FINAL ORDER SUMMARY'!S78","v":0}]
[{"$f":"'VMware FINAL ORDER SUMMARY'!$F79","v":0},null,{"$f":"'VMware FINAL ORDER SUMMARY'!H79","v":""},{"$f":"'VMware FINAL ORDER SUMMARY'!J79","v":0},{"$f":"'VMware FINAL ORDER SUMMARY'!K79","v":""},{"$f":"'VMware FINAL ORDER SUMMARY'!L79","v":""},{"$f":"'VMware FINAL ORDER SUMMARY'!M79","v":0},{"$f":"'VMware FINAL ORDER SUMMARY'!N79","v":""},{"$f":"'VMware FINAL ORDER SUMMARY'!O79","v":""},{"$f":"'VMware FINAL ORDER SUMMARY'!P79","v":""},{"$f":"'VMware FINAL ORDER SUMMARY'!S79","v":0}]
[{"$f":"'VMware FINAL ORDER SUMMARY'!$F80","v":0},null,{"$f":"'VMware FINAL ORDER SUMMARY'!H80","v":""},{"$f":"'VMware FINAL ORDER SUMMARY'!J80","v":0},{"$f":"'VMware FINAL ORDER SUMMARY'!K80","v":""},{"$f":"'VMware FINAL ORDER SUMMARY'!L80","v":""},{"$f":"'VMware FINAL ORDER SUMMARY'!M80","v":0},{"$f":"'VMware FINAL ORDER SUMMARY'!N80","v":""},{"$f":"'VMware FINAL ORDER SUMMARY'!O80","v":""},{"$f":"'VMware FINAL ORDER SUMMARY'!P80","v":""},{"$f":"'VMware FINAL ORDER SUMMARY'!S80","v":0}]
[{"$f":"'VMware FINAL ORDER SUMMARY'!$F81","v":0},null,{"$f":"'VMware FINAL ORDER SUMMARY'!H81","v":""},{"$f":"'VMware FINAL ORDER SUMMARY'!J81","v":0},{"$f":"'VMware FINAL ORDER SUMMARY'!K81","v":""},{"$f":"'VMware FINAL ORDER SUMMARY'!L81","v":""},{"$f":"'VMware FINAL ORDER SUMMARY'!M81","v":0},{"$f":"'VMware FINAL ORDER SUMMARY'!N81","v":""},{"$f":"'VMware FINAL ORDER SUMMARY'!O81","v":""},{"$f":"'VMware FINAL ORDER SUMMARY'!P81","v":""},{"$f":"'VMware FINAL ORDER SUMMARY'!S81","v":0}]
[{"$f":"'VMware FINAL ORDER SUMMARY'!$F82","v":0},null,{"$f":"'VMware FINAL ORDER SUMMARY'!H82","v":""},{"$f":"'VMware FINAL ORDER SUMMARY'!J82","v":0},{"$f":"'VMware FINAL ORDER SUMMARY'!K82","v":""},{"$f":"'VMware FINAL ORDER SUMMARY'!L82","v":""},{"$f":"'VMware FINAL ORDER SUMMARY'!M82","v":0},{"$f":"'VMware FINAL ORDER SUMMARY'!N82","v":""},{"$f":"'VMware FINAL ORDER SUMMARY'!O82","v":""},{"$f":"'VMware FINAL ORDER SUMMARY'!P82","v":""},{"$f":"'VMware FINAL ORDER SUMMARY'!S82","v":0}]
[{"$f":"'VMware FINAL ORDER SUMMARY'!$F83","v":0},null,{"$f":"'VMware FINAL ORDER SUMMARY'!H83","v":""},{"$f":"'VMware FINAL ORDER SUMMARY'!J83","v":0},{"$f":"'VMware FINAL ORDER SUMMARY'!K83","v":""},{"$f":"'VMware FINAL ORDER SUMMARY'!L83","v":""},{"$f":"'VMware FINAL ORDER SUMMARY'!M83","v":0},{"$f":"'VMware FINAL ORDER SUMMARY'!N83","v":""},{"$f":"'VMware FINAL ORDER SUMMARY'!O83","v":""},{"$f":"'VMware FINAL ORDER SUMMARY'!P83","v":""},{"$f":"'VMware FINAL ORDER SUMMARY'!S83","v":0}]
[{"$f":"'VMware FINAL ORDER SUMMARY'!$F84","v":0},null,{"$f":"'VMware FINAL ORDER SUMMARY'!H84","v":""},{"$f":"'VMware FINAL ORDER SUMMARY'!J84","v":0},{"$f":"'VMware FINAL ORDER SUMMARY'!K84","v":""},{"$f":"'VMware FINAL ORDER SUMMARY'!L84","v":""},{"$f":"'VMware FINAL ORDER SUMMARY'!M84","v":0},{"$f":"'VMware FINAL ORDER SUMMARY'!N84","v":""},{"$f":"'VMware FINAL ORDER SUMMARY'!O84","v":""},{"$f":"'VMware FINAL ORDER SUMMARY'!P84","v":""},{"$f":"'VMware FINAL ORDER SUMMARY'!S84","v":0}]
[{"$f":"'VMware FINAL ORDER SUMMARY'!$F85","v":0},null,{"$f":"'VMware FINAL ORDER SUMMARY'!H85","v":""},{"$f":"'VMware FINAL ORDER SUMMARY'!J85","v":0},{"$f":"'VMware FINAL ORDER SUMMARY'!K85","v":""},{"$f":"'VMware FINAL ORDER SUMMARY'!L85","v":""},{"$f":"'VMware FINAL ORDER SUMMARY'!M85","v":0},{"$f":"'VMware FINAL ORDER SUMMARY'!N85","v":""},{"$f":"'VMware FINAL ORDER SUMMARY'!O85","v":""},{"$f":"'VMware FINAL ORDER SUMMARY'!P85","v":""},{"$f":"'VMware FINAL ORDER SUMMARY'!S85","v":0}]
[]
["Upgrade Licenses:"]
["VMware Products",null,null,"License Fees",null,null,"Maintenance Fees"]
["Product",null,"Product Code","Qty","License Fee","License Total","SnS Term","SnS Fee","SnS Total","SnS Code","Total Cost"]
[{"$f":"'VMware FINAL ORDER SUMMARY'!$F92","v":0},null,{"$f":"'VMware FINAL ORDER SUMMARY'!H92","v":""},{"$f":"'VMware FINAL ORDER SUMMARY'!J92","v":0},{"$f":"'VMware FINAL ORDER SUMMARY'!K92","v":""},{"$f":"'VMware FINAL ORDER SUMMARY'!L92","v":""},{"$f":"'VMware FINAL ORDER SUMMARY'!M92","v":0},{"$f":"'VMware FINAL ORDER SUMMARY'!N92","v":""},{"$f":"'[1]VMware FINAL ORDER SUMMARY'!O70","v":0},{"$f":"'VMware FINAL ORDER SUMMARY'!P92","v":""},{"$f":"'VMware FINAL ORDER SUMMARY'!S92","v":0}]
[{"$f":"'VMware FINAL ORDER SUMMARY'!$F93","v":""},null,null,null,null,null,null,{"$f":"'VMware FINAL ORDER SUMMARY'!O93","v":""},{"$f":"'VMware FINAL ORDER SUMMARY'!O93","v":""},null,{"$f":"'VMware FINAL ORDER SUMMARY'!S93","v":""}]
[{"$f":"'VMware FINAL ORDER SUMMARY'!$F94","v":0},null,{"$f":"'VMware FINAL ORDER SUMMARY'!H94","v":""},{"$f":"'VMware FINAL ORDER SUMMARY'!J94","v":0},{"$f":"'VMware FINAL ORDER SUMMARY'!K95","v":0},{"$f":"'VMware FINAL ORDER SUMMARY'!L94","v":""},{"$f":"'VMware FINAL ORDER SUMMARY'!M94","v":0},{"$f":"'VMware FINAL ORDER SUMMARY'!N94","v":""},{"$f":"'[1]VMware FINAL ORDER SUMMARY'!O72","v":""},{"$f":"'VMware FINAL ORDER SUMMARY'!P94","v":""},{"$f":"'VMware FINAL ORDER SUMMARY'!S94","v":0}]
[{"$f":"'VMware FINAL ORDER SUMMARY'!$F95","v":""},null,null,null,null,null,null,{"$f":"'VMware FINAL ORDER SUMMARY'!N95","v":0},{"$f":"'[1]VMware FINAL ORDER SUMMARY'!O73","v":""},null,{"$f":"'VMware FINAL ORDER SUMMARY'!S95","v":""}]
[{"$f":"'VMware FINAL ORDER SUMMARY'!$F96","v":0},null,{"$f":"'VMware FINAL ORDER SUMMARY'!H96","v":""},{"$f":"'VMware FINAL ORDER SUMMARY'!J96","v":0},{"$f":"'VMware FINAL ORDER SUMMARY'!K96","v":""},{"$f":"'VMware FINAL ORDER SUMMARY'!L96","v":""},{"$f":"'VMware FINAL ORDER SUMMARY'!M96","v":0},{"$f":"'VMware FINAL ORDER SUMMARY'!N96","v":""},{"$f":"'[1]VMware FINAL ORDER SUMMARY'!O74","v":""},{"$f":"'VMware FINAL ORDER SUMMARY'!P96","v":""},{"$f":"'VMware FINAL ORDER SUMMARY'!S96","v":0}]
[{"$f":"'VMware FINAL ORDER SUMMARY'!$F97","v":""},null,null,null,null,null,null,{"$f":"'VMware FINAL ORDER SUMMARY'!N97","v":0},{"$f":"'[1]VMware FINAL ORDER SUMMARY'!O75","v":""},null,{"$f":"'VMware FINAL ORDER SUMMARY'!S97","v":""}]
[{"$f":"'VMware FINAL ORDER SUMMARY'!$F98","v":0},null,{"$f":"'VMware FINAL ORDER SUMMARY'!H98","v":""},{"$f":"'VMware FINAL ORDER SUMMARY'!J98","v":0},{"$f":"'VMware FINAL ORDER SUMMARY'!K98","v":""},{"$f":"'VMware FINAL ORDER SUMMARY'!L98","v":""},{"$f":"'VMware FINAL ORDER SUMMARY'!M98","v":0},{"$f":"'VMware FINAL ORDER SUMMARY'!N98","v":""},{"$f":"'[1]VMware FINAL ORDER SUMMARY'!O76","v":""},{"$f":"'VMware FINAL ORDER SUMMARY'!P98","v":""},{"$f":"'VMware FINAL ORDER SUMMARY'!S98","v":0}]
[{"$f":"'VMware FINAL ORDER SUMMARY'!$F99","v":""},null,null,null,null,null,null,{"$f":"'VMware FINAL ORDER SUMMARY'!N99","v":0},{"$f":"'[1]VMware FINAL ORDER SUMMARY'!O77","v":""},null,{"$f":"'VMware FINAL ORDER SUMMARY'!S99","v":""}]
[{"$f":"'VMware FINAL ORDER SUMMARY'!$F100","v":0},null,{"$f":"'VMware FINAL ORDER SUMMARY'!H100","v":""},{"$f":"'VMware FINAL ORDER SUMMARY'!J100","v":0},{"$f":"'VMware FINAL ORDER SUMMARY'!K100","v":""},{"$f":"'VMware FINAL ORDER SUMMARY'!L100","v":""},{"$f":"'VMware FINAL ORDER SUMMARY'!M100","v":0},{"$f":"'VMware FINAL ORDER SUMMARY'!N100","v":""},{"$f":"'[1]VMware FINAL ORDER SUMMARY'!O78","v":""},{"$f":"'VMware FINAL ORDER SUMMARY'!P100","v":""},{"$f":"'VMware FINAL ORDER SUMMARY'!S100","v":0}]
[{"$f":"'VMware FINAL ORDER SUMMARY'!$F101","v":""},null,null,null,null,null,null,{"$f":"'VMware FINAL ORDER SUMMARY'!N101","v":0},{"$f":"'[1]VMware FINAL ORDER SUMMARY'!O79","v":""},null,{"$f":"'VMware FINAL ORDER SUMMARY'!S101","v":""}]
[]
["Maintenance Renewals"]
["Product",null,"Product Code","Qty","SnS Term","SnS Fee","SnS Total"]
[{"$f":"'VMware FINAL ORDER SUMMARY'!$F117","v":0},null,{"$f":"'VMware FINAL ORDER SUMMARY'!H117","v":""},{"$f":"'VMware FINAL ORDER SUMMARY'!J117","v":0},{"$f":"'VMware FINAL ORDER SUMMARY'!K117","v":0},{"$f":"'VMware FINAL ORDER SUMMARY'!L117","v":""},{"$f":"'VMware FINAL ORDER SUMMARY'!M117","v":0}]
[{"$f":"'VMware FINAL ORDER SUMMARY'!$F118","v":0},null,{"$f":"'VMware FINAL ORDER SUMMARY'!H118","v":""},{"$f":"'VMware FINAL ORDER SUMMARY'!J118","v":0},{"$f":"'VMware FINAL ORDER SUMMARY'!K118","v":0},{"$f":"'VMware FINAL ORDER SUMMARY'!L118","v":""},{"$f":"'VMware FINAL ORDER SUMMARY'!M118","v":0}]
[{"$f":"'VMware FINAL ORDER SUMMARY'!$F119","v":0},null,{"$f":"'VMware FINAL ORDER SUMMARY'!H119","v":""},{"$f":"'VMware FINAL ORDER SUMMARY'!J119","v":0},{"$f":"'VMware FINAL ORDER SUMMARY'!K119","v":0},{"$f":"'VMware FINAL ORDER SUMMARY'!L119","v":""},{"$f":"'VMware FINAL ORDER SUMMARY'!M119","v":0}]
[{"$f":"'VMware FINAL ORDER SUMMARY'!$F120","v":0},null,{"$f":"'VMware FINAL ORDER SUMMARY'!H120","v":""},{"$f":"'VMware FINAL ORDER SUMMARY'!J120","v":0},{"$f":"'VMware FINAL ORDER SUMMARY'!K120","v":0},{"$f":"'VMware FINAL ORDER SUMMARY'!L120","v":""},{"$f":"'VMware FINAL ORDER SUMMARY'!M120","v":0}]
[{"$f":"'VMware FINAL ORDER SUMMARY'!$F121","v":0},null,{"$f":"'VMware FINAL ORDER SUMMARY'!H121","v":""},{"$f":"'VMware FINAL ORDER SUMMARY'!J121","v":0},{"$f":"'VMware FINAL ORDER SUMMARY'!K121","v":0},{"$f":"'VMware FINAL ORDER SUMMARY'!L121","v":""},{"$f":"'VMware FINAL ORDER SUMMARY'!M121","v":0}]
[{"$f":"'VMware FINAL ORDER SUMMARY'!$F122","v":0},null,{"$f":"'VMware FINAL ORDER SUMMARY'!H122","v":""},{"$f":"'VMware FINAL ORDER SUMMARY'!J122","v":0},{"$f":"'VMware FINAL ORDER SUMMARY'!K122","v":0},{"$f":"'VMware FINAL ORDER SUMMARY'!L122","v":""},{"$f":"'VMware FINAL ORDER SUMMARY'!M122","v":0}]
[{"$f":"'VMware FINAL ORDER SUMMARY'!$F123","v":0},null,{"$f":"'VMware FINAL ORDER SUMMARY'!H123","v":""},{"$f":"'VMware FINAL ORDER SUMMARY'!J123","v":0},{"$f":"'VMware FINAL ORDER SUMMARY'!K123","v":0},{"$f":"'VMware FINAL ORDER SUMMARY'!L123","v":""},{"$f":"'VMware FINAL ORDER SUMMARY'!M123","v":0}]
[{"$f":"'VMware FINAL ORDER SUMMARY'!$F124","v":0},null,{"$f":"'VMware FINAL ORDER SUMMARY'!H124","v":""},{"$f":"'VMware FINAL ORDER SUMMARY'!J124","v":0},{"$f":"'VMware FINAL ORDER SUMMARY'!K124","v":0},{"$f":"'VMware FINAL ORDER SUMMARY'!L124","v":""},{"$f":"'VMware FINAL ORDER SUMMARY'!M124","v":0}]
[{"$f":"'VMware FINAL ORDER SUMMARY'!$F125","v":0},null,{"$f":"'VMware FINAL ORDER SUMMARY'!H125","v":""},{"$f":"'VMware FINAL ORDER SUMMARY'!J125","v":0},{"$f":"'VMware FINAL ORDER SUMMARY'!K125","v":0},{"$f":"'VMware FINAL ORDER SUMMARY'!L125","v":""},{"$f":"'VMware FINAL ORDER SUMMARY'!M125","v":0}]
[]
["PSO Credits"]
["Professional Services Credits",null,"Product Code","Qty","PSO Fee","PSO Total"]
[{"$f":"IF('VMware FINAL ORDER SUMMARY'!$J$108=\"\",\"\",'VMware FINAL ORDER SUMMARY'!$F108)","v":""},null,{"$f":"IF('VMware FINAL ORDER SUMMARY'!$J$108=\"\",\"\",'VMware FINAL ORDER SUMMARY'!H108)","v":""},{"$f":"'VMware FINAL ORDER SUMMARY'!J108","v":0},{"$f":"IF('VMware FINAL ORDER SUMMARY'!$J$108=\"\",\"\",'VMware FINAL ORDER SUMMARY'!K108)","v":""},{"$f":"'VMware FINAL ORDER SUMMARY'!L108","v":0}]
[]
[]
[]
[]
[]
[]
["GRAND TOTAL:",{"$f":"SUM(K23:K32,K37:K46,G50:G58,F62)","v":0}]